[Event "Late-Titled-Tuesday-Blitz-June-18-2024"]
[Site "Chess.com"]
[Date "2024.06.18"]
[Round "5"]
[White "santosalberto1987"]
[Black "Hakiki_satranc"]
[Result "1-0"]
[WhiteElo "2568"]
[BlackElo "2434"]
[TimeControl "180+1"]
[EndTime "14:57:00 PDT"]
[Termination "santosalberto1987 won on time"]

1. e4 {[%clk 0:03:00.9]} 1... e5 {[%clk 0:02:55.7]} 2. Nf3 {[%clk 0:03:00.7]}
2... Nf6 {[%clk 0:02:54.9]} 3. d4 {[%clk 0:02:54.8]} 3... Nxe4 {[%clk
0:02:53.4]} 4. Nxe5 {[%clk 0:02:54.9]} 4... d5 {[%clk 0:02:41.1]} 5. Bd3 {[%clk
0:02:54.3]} 5... Bb4+ {[%clk 0:02:34.8]} 6. c3 {[%clk 0:02:51]} 6... Bd6 {[%clk
0:02:35.3]} 7. O-O {[%clk 0:02:49.4]} 7... O-O {[%clk 0:02:33]} 8. Nd2 {[%clk
0:02:47.9]} 8... Nxd2 {[%clk 0:02:04.9]} 9. Bxd2 {[%clk 0:02:48.8]} 9... Nc6
{[%clk 0:01:40.9]} 10. f4 {[%clk 0:02:46.7]} 10... Ne7 {[%clk 0:01:24.7]} 11.
Qh5 {[%clk 0:02:42.4]} 11... g6 {[%clk 0:01:18.5]} 12. Qf3 {[%clk 0:02:41]}
12... Bf5 {[%clk 0:01:16]} 13. Bxf5 {[%clk 0:02:40]} 13... Nxf5 {[%clk
0:01:16.9]} 14. Qxd5 {[%clk 0:02:39]} 14... Bxe5 {[%clk 0:01:00.3]} 15. Qxd8
{[%clk 0:02:29.2]} 15... Raxd8 {[%clk 0:00:51]} 16. fxe5 {[%clk 0:02:29.4]}
16... c5 {[%clk 0:00:50.9]} 17. g4 {[%clk 0:02:16.5]} 17... Ng7 {[%clk
0:00:44.6]} 18. Bg5 {[%clk 0:02:08.2]} 18... Rd7 {[%clk 0:00:37.6]} 19. dxc5
{[%clk 0:01:47.3]} 19... Ne6 {[%clk 0:00:33.4]} 20. Bh6 {[%clk 0:01:46.6]} 20...
Rc8 {[%clk 0:00:25.2]} 21. b4 {[%clk 0:01:46.1]} 21... b6 {[%clk 0:00:25.8]} 22.
cxb6 {[%clk 0:01:28.3]} 22... axb6 {[%clk 0:00:26.7]} 23. Rad1 {[%clk
0:01:19.5]} 23... Rxd1 {[%clk 0:00:20.4]} 24. Rxd1 {[%clk 0:01:19.6]} 24... Rxc3
{[%clk 0:00:21.2]} 25. Rd6 {[%clk 0:01:19.8]} 25... Rc8 {[%clk 0:00:11.6]} 26.
Rxb6 {[%clk 0:01:18.8]} 26... Nd4 {[%clk 0:00:11.8]} 27. a4 {[%clk 0:01:10.1]}
27... f5 {[%clk 0:00:10]} 28. exf6 {[%clk 0:01:09]} 28... Rc2 {[%clk 0:00:09]}
29. Rb7 {[%clk 0:00:57.2]} 29... Nf3+ {[%clk 0:00:03.3]} 30. Kf1 {[%clk
0:00:57.4]} 30... Ne5 {[%clk 0:00:01.9]} 31. Rg7+ {[%clk 0:00:53.2]} 1-0

[Event "Late-Titled-Tuesday-Blitz-June-18-2024"]
[Site "Chess.com"]
[Date "2024.06.18"]
[Round "5"]
[White "kleber2007"]
[Black "Mikayel99"]
[Result "0-1"]
[WhiteElo "2479"]
[BlackElo "2665"]
[TimeControl "180+1"]
[EndTime "14:57:01 PDT"]
[Termination "Mikayel99 won by checkmate"]

1. Nf3 {[%clk 0:03:00.9]} 1... g6 {[%clk 0:03:00]} 2. d4 {[%clk 0:03:00.5]} 2...
Bg7 {[%clk 0:02:56.3]} 3. e4 {[%clk 0:03:00.2]} 3... d6 {[%clk 0:02:55.6]} 4. c3
{[%clk 0:03:00]} 4... Nf6 {[%clk 0:02:54]} 5. Bd3 {[%clk 0:02:59.7]} 5... O-O
{[%clk 0:02:53.3]} 6. O-O {[%clk 0:02:59.5]} 6... Nbd7 {[%clk 0:02:52.9]} 7. Bg5
{[%clk 0:02:58.2]} 7... h6 {[%clk 0:02:52.4]} 8. Bh4 {[%clk 0:02:57.8]} 8... g5
{[%clk 0:02:52.5]} 9. Bg3 {[%clk 0:02:57.6]} 9... Nh5 {[%clk 0:02:53.1]} 10.
Nbd2 {[%clk 0:02:52.8]} 10... Nxg3 {[%clk 0:02:53.1]} 11. hxg3 {[%clk
0:02:52.7]} 11... e5 {[%clk 0:02:50.7]} 12. dxe5 {[%clk 0:02:52.3]} 12... dxe5
{[%clk 0:02:47.2]} 13. Qc2 {[%clk 0:02:48.3]} 13... Nc5 {[%clk 0:02:36.4]} 14.
Bc4 {[%clk 0:02:40]} 14... Bg4 {[%clk 0:02:35.6]} 15. b4 {[%clk 0:02:27.8]}
15... Ne6 {[%clk 0:02:31.2]} 16. Rfd1 {[%clk 0:02:27.7]} 16... Qe7 {[%clk
0:02:29.8]} 17. Nf1 {[%clk 0:02:26.4]} 17... Qf6 {[%clk 0:02:18.4]} 18. Ne3
{[%clk 0:02:00.7]} 18... Bxf3 {[%clk 0:02:17.1]} 19. gxf3 {[%clk 0:02:01.6]}
19... Qxf3 {[%clk 0:02:12.2]} 20. Nf5 {[%clk 0:01:55.4]} 20... Qh5 {[%clk
0:01:58.7]} 21. Rd7 {[%clk 0:01:51.3]} 21... Rae8 {[%clk 0:01:52.2]} 22. Kg2
{[%clk 0:01:37.6]} 22... Qg4 {[%clk 0:01:44.3]} 23. Qd1 {[%clk 0:01:22.3]} 23...
Qxe4+ {[%clk 0:01:37.2]} 24. Qf3 {[%clk 0:01:21.3]} 24... Qxc4 {[%clk
0:01:34.1]} 25. Rad1 {[%clk 0:01:15]} 25... g4 {[%clk 0:01:29]} 26. Qxb7 {[%clk
0:01:12.7]} 26... c6 {[%clk 0:01:20.3]} 27. Nd6 {[%clk 0:01:08.8]} 27... Qxc3
{[%clk 0:01:10.6]} 28. Nxe8 {[%clk 0:00:54.2]} 28... Qf3+ {[%clk 0:01:09.1]} 29.
Kg1 {[%clk 0:00:50.2]} 29... Rxe8 {[%clk 0:00:50.4]} 30. R7d3 {[%clk 0:00:40.1]}
30... Qe4 {[%clk 0:00:44.3]} 31. Re3 {[%clk 0:00:39.1]} 31... Qc2 {[%clk
0:00:43.7]} 32. Rde1 {[%clk 0:00:36.5]} 32... Ng5 {[%clk 0:00:41.6]} 33. R1e2
{[%clk 0:00:32]} 33... Nf3+ {[%clk 0:00:38.8]} 34. Rxf3 {[%clk 0:00:30.2]} 34...
Qd1+ {[%clk 0:00:36.9]} 35. Kg2 {[%clk 0:00:27.2]} 35... gxf3+ {[%clk
0:00:35.6]} 36. Kxf3 {[%clk 0:00:27.4]} 36... e4+ {[%clk 0:00:35]} 37. Ke3
{[%clk 0:00:27.5]} 37... Qd3+ {[%clk 0:00:34.5]} 38. Kf4 {[%clk 0:00:26.9]}
38... Qf3# {[%clk 0:00:35.1]} 0-1

[Event "Late-Titled-Tuesday-Blitz-June-18-2024"]
[Site "Chess.com"]
[Date "2024.06.18"]
[Round "5"]
[White "BirdMaster3000"]
[Black "yobdc"]
[Result "0-1"]
[WhiteElo "2774"]
[BlackElo "2575"]
[TimeControl "180+1"]
[EndTime "14:57:05 PDT"]
[Termination "yobdc won by resignation"]

1. f4 {[%clk 0:03:00.9]} 1... Nf6 {[%clk 0:02:21.2]} 2. Nf3 {[%clk 0:03:00.5]}
2... g6 {[%clk 0:02:18.3]} 3. c4 {[%clk 0:02:59.7]} 3... Bg7 {[%clk 0:02:18.7]}
4. Nc3 {[%clk 0:03:00.1]} 4... d6 {[%clk 0:02:19.1]} 5. e4 {[%clk 0:03:00.5]}
5... O-O {[%clk 0:02:18.7]} 6. d4 {[%clk 0:03:00.4]} 6... c5 {[%clk 0:01:59.6]}
7. dxc5 {[%clk 0:02:59.7]} 7... Qa5 {[%clk 0:01:56.9]} 8. Bd3 {[%clk 0:02:59.2]}
8... Qxc5 {[%clk 0:01:54.5]} 9. Qe2 {[%clk 0:02:59.5]} 9... Bg4 {[%clk
0:01:48.7]} 10. Be3 {[%clk 0:02:59.2]} 10... Qa5 {[%clk 0:01:43.4]} 11. O-O
{[%clk 0:02:59]} 11... Nc6 {[%clk 0:01:41.9]} 12. a3 {[%clk 0:02:51.3]} 12...
Rac8 {[%clk 0:01:38.6]} 13. h3 {[%clk 0:02:47.1]} 13... Bxf3 {[%clk 0:01:38.5]}
14. Rxf3 {[%clk 0:02:47.7]} 14... Nd7 {[%clk 0:01:37.1]} 15. Nd5 {[%clk
0:02:38.9]} 15... e6 {[%clk 0:01:32.2]} 16. Nc3 {[%clk 0:02:32.3]} 16... Nd4
{[%clk 0:01:30.7]} 17. Bxd4 {[%clk 0:02:30.9]} 17... Bxd4+ {[%clk 0:01:31.6]}
18. Kh1 {[%clk 0:02:31.1]} 18... Bxc3 {[%clk 0:01:31.9]} 19. bxc3 {[%clk
0:02:31.3]} 19... Qxc3 {[%clk 0:01:32.4]} 20. Raf1 {[%clk 0:02:25.5]} 20... Qd4
{[%clk 0:01:26.1]} 21. Rg3 {[%clk 0:02:04.1]} 21... Nc5 {[%clk 0:01:17.5]} 22.
Bb1 {[%clk 0:02:03.6]} 22... Na4 {[%clk 0:01:15]} 23. f5 {[%clk 0:01:50.5]}
23... Nc3 {[%clk 0:01:05.4]} 24. Qb2 {[%clk 0:01:50.5]} 24... Qxc4 {[%clk
0:00:44.3]} 25. Rc1 {[%clk 0:01:25.2]} 25... Na4 {[%clk 0:00:43.4]} 26. Rxc4
{[%clk 0:01:25.7]} 26... Nxb2 {[%clk 0:00:43.4]} 27. Rxc8 {[%clk 0:01:25.8]}
27... Rxc8 {[%clk 0:00:44.3]} 28. fxe6 {[%clk 0:01:26.3]} 28... fxe6 {[%clk
0:00:40.8]} 29. Ba2 {[%clk 0:01:25.7]} 29... Nc4 {[%clk 0:00:34]} 30. Rd3 {[%clk
0:01:20]} 30... Kf8 {[%clk 0:00:20.7]} 31. Rd4 {[%clk 0:01:16.7]} 31... b5
{[%clk 0:00:19.2]} 32. a4 {[%clk 0:01:16.8]} 32... a6 {[%clk 0:00:19.5]} 33.
axb5 {[%clk 0:01:16.6]} 33... axb5 {[%clk 0:00:20.4]} 34. Bxc4 {[%clk
0:01:14.8]} 34... bxc4 {[%clk 0:00:20.3]} 35. Rxd6 {[%clk 0:01:11.8]} 35... c3
{[%clk 0:00:20.6]} 36. Rd1 {[%clk 0:01:12.5]} 36... c2 {[%clk 0:00:21.2]} 37.
Rc1 {[%clk 0:01:13.2]} 37... Ke7 {[%clk 0:00:21.5]} 38. Kg1 {[%clk 0:01:13.9]}
38... Kf6 {[%clk 0:00:21.7]} 39. Kf2 {[%clk 0:01:14.4]} 39... Ke5 {[%clk
0:00:21.9]} 40. Ke3 {[%clk 0:01:14.9]} 40... g5 {[%clk 0:00:21.9]} 41. Kd3
{[%clk 0:01:14]} 41... h5 {[%clk 0:00:21.4]} 42. g3 {[%clk 0:01:14]} 42... h4
{[%clk 0:00:21.6]} 43. gxh4 {[%clk 0:01:13.9]} 43... gxh4 {[%clk 0:00:22.5]} 44.
Ke3 {[%clk 0:01:13.9]} 44... Rc3+ {[%clk 0:00:22.2]} 45. Kd2 {[%clk 0:01:14.1]}
45... Kd4 {[%clk 0:00:21.1]} 46. e5 {[%clk 0:01:14.1]} 46... Rc5 {[%clk
0:00:20.8]} 47. Rg1 {[%clk 0:01:04.7]} 47... c1=Q+ {[%clk 0:00:19.4]} 48. Rxc1
{[%clk 0:01:04.7]} 48... Rxc1 {[%clk 0:00:20.3]} 49. Kxc1 {[%clk 0:01:05.5]}
49... Kxe5 {[%clk 0:00:20.7]} 50. Kd2 {[%clk 0:01:06.4]} 50... Kf4 {[%clk
0:00:21.2]} 51. Ke2 {[%clk 0:01:07]} 51... Kg3 {[%clk 0:00:20.8]} 0-1

[Event "Late-Titled-Tuesday-Blitz-June-18-2024"]
[Site "Chess.com"]
[Date "2024.06.18"]
[Round "5"]
[White "crazycheesecake"]
[Black "Roedor"]
[Result "0-1"]
[WhiteElo "2119"]
[BlackElo "2461"]
[TimeControl "180+1"]
[EndTime "14:57:05 PDT"]
[Termination "Roedor won by checkmate"]

1. e4 {[%clk 0:03:00.9]} 1... e5 {[%clk 0:02:34.5]} 2. Nf3 {[%clk 0:02:59.2]}
2... Nc6 {[%clk 0:02:28.2]} 3. d4 {[%clk 0:02:58.9]} 3... exd4 {[%clk
0:02:27.9]} 4. Nxd4 {[%clk 0:02:59.8]} 4... Nf6 {[%clk 0:02:27.5]} 5. Nc3 {[%clk
0:02:59.6]} 5... Bb4 {[%clk 0:02:26.9]} 6. Nxc6 {[%clk 0:02:58.6]} 6... bxc6
{[%clk 0:02:27.8]} 7. Bd3 {[%clk 0:02:59]} 7... d5 {[%clk 0:02:27.8]} 8. exd5
{[%clk 0:02:59.1]} 8... cxd5 {[%clk 0:02:28.7]} 9. O-O {[%clk 0:02:59.3]} 9...
O-O {[%clk 0:02:28.6]} 10. Bg5 {[%clk 0:02:59.3]} 10... c6 {[%clk 0:02:28.9]}
11. Qf3 {[%clk 0:02:58.8]} 11... Be6 {[%clk 0:02:27.9]} 12. h3 {[%clk
0:02:58.5]} 12... h6 {[%clk 0:02:26.8]} 13. Bxf6 {[%clk 0:02:54.9]} 13... Qxf6
{[%clk 0:02:27.7]} 14. Qxf6 {[%clk 0:02:54.8]} 14... gxf6 {[%clk 0:02:28.6]} 15.
Ne2 {[%clk 0:02:51.8]} 15... Bd6 {[%clk 0:02:27]} 16. c3 {[%clk 0:02:48.1]}
16... c5 {[%clk 0:02:25.5]} 17. Ng3 {[%clk 0:02:46.9]} 17... Rab8 {[%clk
0:02:23.8]} 18. b3 {[%clk 0:02:44.9]} 18... Be5 {[%clk 0:02:23.7]} 19. Rac1
{[%clk 0:02:43.6]} 19... c4 {[%clk 0:02:09.2]} 20. bxc4 {[%clk 0:02:21.4]} 20...
dxc4 {[%clk 0:02:10.1]} 21. Bb1 {[%clk 0:02:12.4]} 21... Rb2 {[%clk 0:02:05.9]}
22. Ne4 {[%clk 0:01:42.8]} 22... Rfb8 {[%clk 0:02:04]} 23. f4 {[%clk 0:01:38.2]}
23... Bc7 {[%clk 0:01:47]} 24. Nxf6+ {[%clk 0:01:36.4]} 24... Kg7 {[%clk
0:01:46.4]} 25. Nh5+ {[%clk 0:01:17.5]} 25... Kf8 {[%clk 0:01:46.2]} 26. Nf6
{[%clk 0:00:26.9]} 26... Bd8 {[%clk 0:01:36.2]} 27. Ne4 {[%clk 0:00:20.4]} 27...
Bd5 {[%clk 0:01:36.4]} 28. a3 {[%clk 0:00:12.9]} 28... f5 {[%clk 0:01:29.1]} 29.
Nf2 {[%clk 0:00:10.5]} 29... Bb6 {[%clk 0:01:15.4]} 30. Bxf5 {[%clk 0:00:09.2]}
30... Kf7 {[%clk 0:01:04.2]} 31. Rb1 {[%clk 0:00:06.3]} 31... Bxf2+ {[%clk
0:01:02.2]} 32. Rxf2 {[%clk 0:00:01]} 32... Rxb1+ {[%clk 0:01:01.9]} 33. Kh2
{[%clk 0:00:01.9]} 33... R1b2 {[%clk 0:00:59.8]} 34. Rf1 {[%clk 0:00:01]} 34...
Rxg2+ {[%clk 0:00:59.5]} 35. Kh1 {[%clk 0:00:01.9]} 35... Rg7+ {[%clk
0:00:56.4]} 36. Kh2 {[%clk 0:00:02.2]} 36... Rb2+ {[%clk 0:00:56.5]} 37. Rf2
{[%clk 0:00:01.1]} 37... Rxf2# {[%clk 0:00:56.5]} 0-1

[Event "Late-Titled-Tuesday-Blitz-June-18-2024"]
[Site "Chess.com"]
[Date "2024.06.18"]
[Round "5"]
[White "Giantgoogachess"]
[Black "GMG"]
[Result "0-1"]
[WhiteElo "2493"]
[BlackElo "2682"]
[TimeControl "180+1"]
[EndTime "14:57:08 PDT"]
[Termination "GMG won by resignation"]

1. d4 {[%clk 0:03:00.9]} 1... d5 {[%clk 0:02:55.6]} 2. c4 {[%clk 0:03:01.3]}
2... e6 {[%clk 0:02:55.7]} 3. Nc3 {[%clk 0:03:00.9]} 3... Nf6 {[%clk 0:02:55.7]}
4. cxd5 {[%clk 0:03:00.3]} 4... exd5 {[%clk 0:02:56.6]} 5. Bg5 {[%clk
0:03:00.2]} 5... Bb4 {[%clk 0:02:56.9]} 6. e3 {[%clk 0:02:55.9]} 6... h6 {[%clk
0:02:56.4]} 7. Bxf6 {[%clk 0:02:52.3]} 7... Qxf6 {[%clk 0:02:56.1]} 8. a3 {[%clk
0:02:53.2]} 8... Bxc3+ {[%clk 0:02:49.1]} 9. bxc3 {[%clk 0:02:54.1]} 9... c5
{[%clk 0:02:45.1]} 10. Bd3 {[%clk 0:02:53.2]} 10... O-O {[%clk 0:02:33.6]} 11.
Ne2 {[%clk 0:02:52.7]} 11... c4 {[%clk 0:02:25.2]} 12. Bc2 {[%clk 0:02:49.9]}
12... Bf5 {[%clk 0:02:25.7]} 13. O-O {[%clk 0:02:45.5]} 13... Re8 {[%clk
0:02:19.2]} 14. Rb1 {[%clk 0:02:44.2]} 14... Re7 {[%clk 0:02:19.1]} 15. Nf4
{[%clk 0:02:35.1]} 15... Bxc2 {[%clk 0:02:05.5]} 16. Qxc2 {[%clk 0:02:34]} 16...
Qc6 {[%clk 0:02:06]} 17. Qf5 {[%clk 0:02:21.1]} 17... Rd7 {[%clk 0:02:05.1]} 18.
Rb2 {[%clk 0:01:51.3]} 18... g6 {[%clk 0:01:51]} 19. Qg4 {[%clk 0:01:47.9]}
19... Na6 {[%clk 0:01:43.5]} 20. Rfb1 {[%clk 0:01:45.7]} 20... Rad8 {[%clk
0:01:41.9]} 21. h4 {[%clk 0:01:44.4]} 21... b6 {[%clk 0:01:37.5]} 22. h5 {[%clk
0:01:33.5]} 22... g5 {[%clk 0:01:37.4]} 23. Ne2 {[%clk 0:01:32]} 23... Qe6
{[%clk 0:01:33.1]} 24. Qf3 {[%clk 0:01:29.4]} 24... f5 {[%clk 0:01:30.6]} 25. a4
{[%clk 0:01:24.7]} 25... Nc7 {[%clk 0:01:29.9]} 26. a5 {[%clk 0:01:20.9]} 26...
b5 {[%clk 0:01:29.5]} 27. Ng3 {[%clk 0:01:05.7]} 27... Rf8 {[%clk 0:01:26.9]}
28. Re2 {[%clk 0:01:06.1]} 28... a6 {[%clk 0:01:25.3]} 29. Rbe1 {[%clk
0:01:00.3]} 29... Ne8 {[%clk 0:01:23]} 30. Rb2 {[%clk 0:00:47.9]} 30... Nd6
{[%clk 0:01:22.2]} 31. Qd1 {[%clk 0:00:45.8]} 31... Ne4 {[%clk 0:01:14.3]} 32.
Nxe4 {[%clk 0:00:45.6]} 32... fxe4 {[%clk 0:01:15.2]} 33. Rf1 {[%clk 0:00:40]}
33... Rdf7 {[%clk 0:01:13.9]} 34. Re2 {[%clk 0:00:31.3]} 34... Rf3 {[%clk
0:01:09.7]} 35. Kh2 {[%clk 0:00:19]} 35... Qg4 {[%clk 0:01:06]} 36. Rd2 {[%clk
0:00:15.5]} 36... Qxh5+ {[%clk 0:01:00.8]} 37. Kg1 {[%clk 0:00:16.1]} 37... g4
{[%clk 0:00:58.5]} 38. Rc2 {[%clk 0:00:13.6]} 38... R8f5 {[%clk 0:00:55.6]} 39.
Rd2 {[%clk 0:00:13.5]} 39... Qh4 {[%clk 0:00:54.9]} 40. Rc2 {[%clk 0:00:10.4]}
40... Rh5 {[%clk 0:00:52.8]} 0-1

[Event "Late-Titled-Tuesday-Blitz-June-18-2024"]
[Site "Chess.com"]
[Date "2024.06.18"]
[Round "5"]
[White "olakenn"]
[Black "picturesquecheck"]
[Result "0-1"]
[WhiteElo "1876"]
[BlackElo "2377"]
[TimeControl "180+1"]
[EndTime "14:57:08 PDT"]
[Termination "picturesquecheck won by resignation"]

1. e4 {[%clk 0:03:00.9]} 1... e6 {[%clk 0:02:59]} 2. d4 {[%clk 0:03:00.7]} 2...
d5 {[%clk 0:02:59.9]} 3. exd5 {[%clk 0:03:01.1]} 3... exd5 {[%clk 0:02:59.3]} 4.
Nf3 {[%clk 0:03:01.5]} 4... Nf6 {[%clk 0:02:58.3]} 5. Be2 {[%clk 0:03:01.7]}
5... Be7 {[%clk 0:02:59]} 6. O-O {[%clk 0:03:01.7]} 6... O-O {[%clk 0:02:59.9]}
7. c3 {[%clk 0:03:01]} 7... c5 {[%clk 0:03:00.5]} 8. dxc5 {[%clk 0:03:00.6]}
8... Bxc5 {[%clk 0:03:00.2]} 9. Bg5 {[%clk 0:02:58.4]} 9... Be6 {[%clk
0:03:00.2]} 10. Nbd2 {[%clk 0:02:57.1]} 10... h6 {[%clk 0:03:00]} 11. Bh4 {[%clk
0:02:56.6]} 11... Nc6 {[%clk 0:02:59.5]} 12. Nb3 {[%clk 0:02:54.2]} 12... Be7
{[%clk 0:02:57.3]} 13. Nbd4 {[%clk 0:02:53.2]} 13... Bd7 {[%clk 0:02:57.3]} 14.
Nxc6 {[%clk 0:02:52.7]} 14... bxc6 {[%clk 0:02:55.4]} 15. Re1 {[%clk 0:02:49.9]}
15... Re8 {[%clk 0:02:54.8]} 16. Rc1 {[%clk 0:02:49.1]} 16... Qb6 {[%clk
0:02:54.6]} 17. b3 {[%clk 0:02:46.5]} 17... Ne4 {[%clk 0:02:54.1]} 18. Bxe7
{[%clk 0:02:40.6]} 18... Qxf2+ {[%clk 0:02:53.2]} 19. Kh1 {[%clk 0:02:38.9]}
19... Rxe7 {[%clk 0:02:54.1]} 20. Bd3 {[%clk 0:02:24.3]} 20... Bg4 {[%clk
0:02:45.9]} 21. Bxe4 {[%clk 0:02:17.8]} 21... dxe4 {[%clk 0:02:45.2]} 22. Qd4
{[%clk 0:01:43.9]} 22... Qxd4 {[%clk 0:02:13.9]} 23. Nxd4 {[%clk 0:01:43.6]}
23... Bd7 {[%clk 0:02:14.2]} 24. Re3 {[%clk 0:01:37.9]} 24... c5 {[%clk
0:02:10.4]} 25. Ne2 {[%clk 0:01:24.8]} 25... Bg4 {[%clk 0:01:59.7]} 26. h3
{[%clk 0:01:18]} 26... Bf5 {[%clk 0:01:53.4]} 27. Re1 {[%clk 0:01:11.7]} 27...
Rd8 {[%clk 0:01:38.1]} 28. Ng3 {[%clk 0:01:08.7]} 28... Rd5 {[%clk 0:01:12.3]}
29. Nxe4 {[%clk 0:01:07.2]} 29... Rde5 {[%clk 0:01:07.5]} 30. b4 {[%clk
0:00:25.8]} 30... cxb4 {[%clk 0:01:04.1]} 31. cxb4 {[%clk 0:00:25.3]} 31... Bxe4
{[%clk 0:01:04.4]} 32. Kg1 {[%clk 0:00:25.4]} 32... f5 {[%clk 0:01:03.9]} 33. g4
{[%clk 0:00:22.5]} 33... g6 {[%clk 0:01:03.2]} 34. h4 {[%clk 0:00:22]} 34... Kg7
{[%clk 0:01:02.6]} 35. h5 {[%clk 0:00:22.1]} 35... fxg4 {[%clk 0:00:59.9]} 36.
hxg6 {[%clk 0:00:21.1]} 36... Kxg6 {[%clk 0:01:00.5]} 37. Kf2 {[%clk 0:00:21]}
37... h5 {[%clk 0:01:00.7]} 38. Kg3 {[%clk 0:00:21.3]} 38... Kg5 {[%clk
0:01:00.2]} 39. b5 {[%clk 0:00:16.1]} 39... h4+ {[%clk 0:01:01.1]} 40. Kf2
{[%clk 0:00:15.4]} 40... g3+ {[%clk 0:01:01.1]} 41. Kg1 {[%clk 0:00:15.2]} 41...
Kg4 {[%clk 0:00:56.9]} 42. a4 {[%clk 0:00:14.8]} 42... h3 {[%clk 0:00:56.7]} 43.
a5 {[%clk 0:00:14.2]} 43... h2+ {[%clk 0:00:56.8]} 0-1

[Event "Late-Titled-Tuesday-Blitz-June-18-2024"]
[Site "Chess.com"]
[Date "2024.06.18"]
[Round "5"]
[White "hblanco"]
[Black "Dexter_Dyke"]
[Result "1-0"]
[WhiteElo "2697"]
[BlackElo "2506"]
[TimeControl "180+1"]
[EndTime "14:57:09 PDT"]
[Termination "hblanco won on time"]

1. e4 {[%clk 0:03:00.4]} 1... e6 {[%clk 0:02:59.6]} 2. d4 {[%clk 0:02:58.3]}
2... a6 {[%clk 0:02:59.7]} 3. Bd3 {[%clk 0:02:54.9]} 3... b5 {[%clk 0:02:59.1]}
4. Nf3 {[%clk 0:02:53.7]} 4... Bb7 {[%clk 0:02:59.1]} 5. O-O {[%clk 0:02:54.4]}
5... c5 {[%clk 0:02:57.4]} 6. c3 {[%clk 0:02:53.6]} 6... Nf6 {[%clk 0:02:57.5]}
7. Re1 {[%clk 0:02:53.7]} 7... Qb6 {[%clk 0:02:56.6]} 8. Bf4 {[%clk 0:02:45.7]}
8... Nc6 {[%clk 0:02:54.5]} 9. Bf1 {[%clk 0:02:33.6]} 9... d5 {[%clk 0:02:28.2]}
10. e5 {[%clk 0:02:05.9]} 10... Ne4 {[%clk 0:02:28.2]} 11. Nbd2 {[%clk 0:02:06]}
11... Be7 {[%clk 0:02:27.5]} 12. Nxe4 {[%clk 0:01:28.7]} 12... dxe4 {[%clk
0:02:27]} 13. Nd2 {[%clk 0:01:29.6]} 13... cxd4 {[%clk 0:02:25.1]} 14. Nxe4
{[%clk 0:01:29.8]} 14... O-O {[%clk 0:02:18.1]} 15. Qg4 {[%clk 0:01:21.6]} 15...
Kh8 {[%clk 0:02:03.1]} 16. Bd3 {[%clk 0:01:12.7]} 16... f5 {[%clk 0:01:34.8]}
17. exf6 {[%clk 0:01:11]} 17... Bxf6 {[%clk 0:01:35.1]} 18. Nxf6 {[%clk
0:00:56.7]} 18... Rxf6 {[%clk 0:01:34]} 19. Rxe6 {[%clk 0:00:57.4]} 19... Rxe6
{[%clk 0:01:03.6]} 20. Qxe6 {[%clk 0:00:58.3]} 20... Qc5 {[%clk 0:00:23.9]} 21.
Re1 {[%clk 0:00:50.4]} 21... Rf8 {[%clk 0:00:22.1]} 22. Bd6 {[%clk 0:00:49.9]}
22... Bc8 {[%clk 0:00:12.6]} 23. Bxc5 {[%clk 0:00:48.5]} 23... Bxe6 {[%clk
0:00:12.3]} 24. Bxf8 {[%clk 0:00:49.1]} 24... dxc3 {[%clk 0:00:11.7]} 25. bxc3
{[%clk 0:00:49.7]} 25... Bxa2 {[%clk 0:00:10.4]} 26. Re8 {[%clk 0:00:49.2]}
26... Kg8 {[%clk 0:00:10.6]} 27. Rc8 {[%clk 0:00:45.5]} 27... Ne5 {[%clk
0:00:10]} 28. Bd6+ {[%clk 0:00:44.6]} 28... Kf7 {[%clk 0:00:09.9]} 29. Bxe5
{[%clk 0:00:45.2]} 29... Ke6 {[%clk 0:00:09.7]} 30. Bxg7 {[%clk 0:00:45.2]} 1-0

[Event "Late-Titled-Tuesday-Blitz-June-18-2024"]
[Site "Chess.com"]
[Date "2024.06.18"]
[Round "5"]
[White "Javokhir_Sindarov05"]
[Black "baki83"]
[Result "0-1"]
[WhiteElo "3050"]
[BlackElo "2828"]
[TimeControl "180+1"]
[EndTime "14:57:12 PDT"]
[Termination "baki83 won by resignation"]

1. e4 {[%clk 0:03:00.9]} 1... c5 {[%clk 0:02:59.9]} 2. Nf3 {[%clk 0:03:01]} 2...
d6 {[%clk 0:03:00.4]} 3. d4 {[%clk 0:03:01.3]} 3... cxd4 {[%clk 0:03:00.9]} 4.
Nxd4 {[%clk 0:03:02.1]} 4... Nf6 {[%clk 0:03:01.5]} 5. Bd3 {[%clk 0:03:02.5]}
5... Nc6 {[%clk 0:02:59]} 6. Be3 {[%clk 0:03:02.8]} 6... e6 {[%clk 0:02:57.2]}
7. c4 {[%clk 0:02:55.9]} 7... Ne5 {[%clk 0:02:55.1]} 8. Nc3 {[%clk 0:02:53.5]}
8... Nxd3+ {[%clk 0:02:53.7]} 9. Qxd3 {[%clk 0:02:54.4]} 9... Be7 {[%clk
0:02:53.6]} 10. O-O {[%clk 0:02:52]} 10... a6 {[%clk 0:02:53.7]} 11. Rad1 {[%clk
0:02:47.2]} 11... Qc7 {[%clk 0:02:51.7]} 12. h3 {[%clk 0:02:41.2]} 12... O-O
{[%clk 0:02:51.2]} 13. g4 {[%clk 0:02:26.5]} 13... b6 {[%clk 0:02:46.8]} 14. f4
{[%clk 0:02:19]} 14... Bb7 {[%clk 0:02:46.9]} 15. f5 {[%clk 0:02:12.7]} 15... d5
{[%clk 0:02:32.3]} 16. Bf4 {[%clk 0:01:15.7]} 16... e5 {[%clk 0:02:30]} 17. g5
{[%clk 0:01:16]} 17... dxe4 {[%clk 0:02:22.2]} 18. Qd2 {[%clk 0:00:53.3]} 18...
exf4 {[%clk 0:02:02.9]} 19. gxf6 {[%clk 0:00:53.1]} 19... Bxf6 {[%clk
0:01:54.2]} 20. Qxf4 {[%clk 0:00:53.2]} 20... Qc5 {[%clk 0:01:51.6]} 21. Qe3
{[%clk 0:00:32.6]} 21... Rad8 {[%clk 0:01:50.4]} 22. Nc2 {[%clk 0:00:33.1]}
22... Rd3 {[%clk 0:01:18.4]} 23. Qxc5 {[%clk 0:00:23.7]} 23... bxc5 {[%clk
0:01:19.3]} 24. Na4 {[%clk 0:00:13.4]} 24... Rfd8 {[%clk 0:01:12]} 25. Rde1
{[%clk 0:00:10.5]} 25... Rg3+ {[%clk 0:00:53.1]} 26. Kf2 {[%clk 0:00:05.7]}
26... Bh4 {[%clk 0:00:45.8]} 27. Re2 {[%clk 0:00:02.6]} 27... e3+ {[%clk
0:00:29.8]} 0-1